fUSD/lending_fUSD_20240813
["ID","MTS","AMOUNT","RATE_DAILY","PERIOD"]
[334759118,1723535562722,-1206.47589964,0.0002466,2]
[334759119,1723535562733,-1206.47589964,0.0002466,2]
[334759120,1723535562744,-1206.47589964,0.0002466,2]
[334759121,1723535562756,-1206.47589964,0.0002466,2]
[334759122,1723535562768,-1206.47589964,0.0002466,2]
[334759123,1723535562779,-1206.47589964,0.0002466,2]
[334759124,1723535562790,-1206.47589964,0.0002466,2]
[334759125,1723535562801,-1206.47589964,0.0002466,2]
[334759126,1723535562813,-1206.47589964,0.0002466,2]
[334759127,1723535562824,-1206.47589964,0.0002466,2]
[334759128,1723535562834,-1206.47589964,0.0002466,2]
[334759129,1723535562845,-186.98277737,0.0002466,2]
[334759130,1723535562856,-186.98277737,0.0002466,2]
[334759131,1723535562867,-186.98277737,0.0002466,2]
[334759132,1723535562878,-186.98277737,0.0002466,2]
[334759133,1723535562890,-186.98277737,0.0002466,2]
[334759134,1723535562901,-186.98277737,0.0002466,2]
[334759135,1723535562912,-186.98277737,0.0002466,2]
[334759136,1723535562923,-186.98277737,0.0002466,2]
[334759137,1723535562934,-186.98277737,0.0002466,2]
[334759138,1723535562944,-186.98277737,0.0002466,2]
[334759139,1723535562955,-186.98277737,0.0002466,2]
[334759140,1723535562966,-186.98277737,0.0002466,2]
[334759141,1723535562976,-186.98277737,0.0002466,2]
[334759142,1723535562987,-186.98277737,0.0002466,2]
[334759143,1723535562998,-186.98277737,0.0002466,2]
[334759144,1723535563494,-186.98277737,0.0002466,2]
[334759145,1723535563516,-186.98277737,0.0002466,2]
[334759146,1723535563526,-186.98277737,0.0002466,2]
[334759147,1723535563536,-186.98277737,0.0002466,2]
[334759148,1723535563545,-187.48,0.0002466,2]
[334759149,1723535563555,-748.00610949,0.0002466,2]
[334759150,1723535563571,-748.00610949,0.0002466,2]
[334759151,1723535563581,-748.00610949,0.0002466,2]
[334759152,1723535563591,-748.00610949,0.0002466,2]
[334759153,1723535563600,-748.00610949,0.0002466,2]
[334759154,1723535563610,-748.00610949,0.0002466,2]
[334759155,1723535563619,-748.00610949,0.0002466,2]
[334759156,1723535563629,-748.00610949,0.0002466,2]
[334759157,1723535563641,-748.00610949,0.0002466,2]
[334759158,1723535563651,-748.00610949,0.0002466,2]
[334759159,1723535563660,-748.00610949,0.0002466,2]
[334759160,1723535563670,-748.00610949,0.0002466,2]
[334759161,1723535563679,-748.00610949,0.0002466,2]
[334759162,1723535563689,-748.00610949,0.0002466,2]
[334759163,1723535563699,-748.00610949,0.0002466,2]
[334759164,1723535563708,-748.00610949,0.0002466,2]
[334759165,1723535563718,-748.00610949,0.0002466,2]
[334759166,1723535563727,-748.00610949,0.0002466,2]
[334759167,1723535563737,-748.00610949,0.0002466,2]
[334759168,1723535563747,-700.0,0.00024664,2]
[334759169,1723535563757,-8873.93,0.0002467,2]
[334759170,1723535563767,-500.0,0.0002467,2]
[334759171,1723535563776,-500.0,0.00024672,2]
[334759172,1723535563785,-18209.55520393,0.00024674,2]
[334759173,1723535563795,-3300.0,0.00024684,2]
[334759174,1723535563804,-8805.1362164,0.000247,7]
[334759175,1723535563815,-25005.36291879,0.000247,7]
[334759176,1723535563824,-232.44525008,0.000247,2]
[334759177,1723535563834,-1900.0,0.00024706,2]
[334759178,1723535563843,-224.38282423,0.00024721,4]
[334759179,1723535563852,-3300.0,0.00024731,2]
[334759180,1723535563862,-4722.75,0.00024736,2]
[334759181,1723535563872,-150.0,0.00024739,2]
[334759182,1723535563882,-152.0,0.00024741,14]
[334759183,1723535563892,-700.0,0.00024743,2]
[334759184,1723535563902,-700.0,0.00024744,2]
[334759185,1723535563911,-203.24103,0.0002475,2]
[334759186,1723535563921,-150.0,0.00024768,4]
[334759187,1723535563930,-1000.0,0.00024771,2]
[334759188,1723535563940,-500.0,0.00024772,2]
[334759189,1723535563950,-82695.08098016,0.00024777,8]
[334759190,1723535563959,-500.64,0.00024778,2]
[334759191,1723535563968,-500.0,0.00024778,2]
[334759192,1723535563978,-500.0,0.00024778,2]
[334759193,1723535563988,-150.0,0.00024778,4]
[334759194,1723535563998,-658.70517638,0.0002478,2]
[334759195,1723535564008,-3000.0,0.000248,2]
[334759196,1723535564019,-3000.0,0.000248,2]
[334759197,1723535564028,-3000.0,0.000248,2]
[334759198,1723535564039,-3000.0,0.000248,2]
[334759199,1723535564048,-3000.0,0.000248,2]
[334759200,1723535564058,-3000.0,0.000248,2]
[334759201,1723535564067,-3025.8384,0.000248,2]
[334759202,1723535564077,-3000.0,0.000248,2]
[334759203,1723535564087,-3000.0,0.000248,2]
[334759204,1723535564096,-3000.0,0.000248,2]
[334759205,1723535564106,-500.0,0.000248,2]
[334759206,1723535564116,-150.0,0.00024802,2]
[334759207,1723535564127,-600.0,0.00024811,2]
[334759208,1723535564137,-500.0,0.00024813,2]
[334759209,1723535564146,-1000.0,0.00024824,31]
[334759210,1723535564156,-500.0,0.00024824,2]
[334759211,1723535564167,-224.38282423,0.00024848,4]
[334759212,1723535564176,-3400.0,0.0002485,2]
[334759213,1723535564185,-600.0,0.00024851,2]
[334759214,1723535564194,-500.0,0.00024855,2]
[334759215,1723535564204,-15239.05912156,0.0002487,2]
[334759216,1723535564213,-137557.8673563,0.0002487,5]
[334759217,1723535564223,-150.0,0.00024874,4]
[334759218,1723535564233,-150.0,0.00024874,4]
[334759219,1723535564243,-450.0,0.0002488,2]
[334759220,1723535564253,-5000.0,0.0002488,30]
[334759221,1723535564263,-5000.0,0.0002488,31]
[334759222,1723535564272,-75666.0,0.0002488,4]
[334759223,1723535564281,-500.0,0.0002488,2]
[334759224,1723535564291,-503.03,0.00024889,2]
[334759225,1723535564300,-500.0,0.00024889,2]
[334759226,1723535564310,-500.0,0.00024889,2]
[334759227,1723535564320,-500.0,0.00024889,2]
[334759228,1723535564330,-500.0,0.00024889,2]
[334759229,1723535564340,-500.0,0.00024889,2]
[334759230,1723535564349,-500.0,0.00024889,2]
[334759231,1723535564359,-500.0,0.00024891,2]
[334759232,1723535564368,-173.205,0.000249,2]
[334759233,1723535564378,-173.205,0.000249,2]
[334759234,1723535564388,-200.0,0.000249,14]
[334759235,1723535564398,-9407.19807183,0.000249,2]
[334759236,1723535564407,-451.69,0.000249,2]
[334759237,1723535564417,-500.84,0.000249,2]
[334759238,1723535564426,-20000.0,0.000249,2]
[334759239,1723535564436,-3000.0,0.000249,2]
[334759240,1723535564445,-1206.97,0.000249,2]
[334759241,1723535564455,-748.5,0.000249,2]
[334759242,1723535564465,-2618.5,0.00024922,2]
[334759243,1723535564474,-541.41903813,0.00024931,8]
[334759244,1723535564484,-608.09358595,0.00024931,8]
[334759245,1723535564493,-3214.8,0.00024931,2]
[334759246,1723535564502,-702.35,0.00024931,2]
[334759247,1723535564513,-571.12,0.00024931,2]
[334759248,1723535564523,-609.11547441,0.00024931,2]
[334759249,1723535564532,-750.64,0.00024931,2]
[334759250,1723535564542,-490.12677631,0.00024931,2]
[334759251,1723535564552,-523.30470827,0.00024931,2]
[334759252,1723535564564,-588.49,0.00024931,2]
[334759253,1723535564576,-1015.8,0.00024931,2]
[334759254,1723535564586,-320.32436791,0.00024931,2]
[334759255,1723535564596,-508.3,0.00024931,2]
[334759256,1723535564607,-234.58801864,0.00024931,2]
[334759257,1723535564617,-969.43,0.00024931,2]
[334759258,1723535564627,-788.34,0.00024931,2]
[334759259,1723535564637,-500.0,0.00024931,2]
[334759260,1723535564647,-500.0,0.00024931,2]
[334759261,1723535564657,-510.82,0.00024931,2]
[334759262,1723535564667,-500.0,0.00024931,2]
[334759263,1723535564677,-2849.94,0.00024931,2]
[334759264,1723535564688,-903.07,0.00024931,2]
[334759265,1723535564697,-546.65,0.00024931,2]
[334759266,1723535564707,-506.46,0.00024931,2]
[334759267,1723535564716,-1249.54,0.00024931,2]
[334759268,1723535564726,-803.11,0.00024931,2]
[334759269,1723535564736,-520.15732844,0.00024931,2]
[334759270,1723535564745,-1655.36,0.00024931,2]
[334759271,1723535564755,-1068.76,0.00024931,2]
[334759272,1723535564764,-613.06,0.00024931,2]
[334759273,1723535564773,-1522.99,0.00024931,2]
[334759274,1723535564783,-914.8,0.00024931,2]
[334759275,1723535564792,-682.0,0.00024931,2]
[334759276,1723535564801,-500.0,0.00024931,2]
[334759277,1723535564811,-562.12,0.00024931,2]
[334759278,1723535564820,-500.0,0.00024938,2]
[334759279,1723535564829,-500.0,0.00024939,2]
[334759280,1723535564838,-3300.0,0.00024957,2]
[334759281,1723535564848,-3300.0,0.00024962,2]
[334759282,1723535564857,-600.0,0.00024969,2]
[334759283,1723535564867,-1000.0,0.00024974,2]
[334759284,1723535564876,-224.38282423,0.00024976,4]
[334759285,1723535564885,-600.0,0.00024998,2]
[334759286,1723535564895,-1000.0,0.00024999,6]
[334759287,1723535564904,-1000.0,0.00024999,5]
[334759288,1723535564913,-1000.0,0.00024999,13]
[334759289,1723535564923,-53764.47564536,0.00024999,2]
[334759290,1723535564932,-6632620.40430918,0.00025,2]
[334759291,1723535564941,-586138.32621151,0.00025,2]
[334759292,1723535564950,-13219834.45754181,0.00025,2]
[334759293,1723535565754,221.01,0.00010905,2]
[334759294,1723535566097,-221.01,0.00013168,2]
[334759295,1723535566322,-211.86434618,0.00013648,2]
[334759296,1723535566356,-310.29642989,0.00013648,2]
[334759297,1723535566366,-500.0,0.00013728,2]
[334759298,1723535566376,-500.0,0.00013799,2]
[334759299,1723535566386,-267.36463336,0.00013899,2]
[334759300,1723535566395,-500.0,0.00014002,2]
[334759301,1723535566405,-60.24079688,0.00014073,2]
[334759302,1723535566423,-439.75920312,0.00014073,2]
[334759303,1723535566434,-524.30108088,0.00014276,2]
[334759304,1723535566444,-732.87,0.00014347,2]
[334759305,1723535566454,-500.0,0.00014347,2]
[334759306,1723535566464,-500.0,0.00014347,2]
[334759307,1723535566473,-191.56720406,0.00014579,2]
[334759308,1723535566483,-732.87,0.00014621,2]
[334759309,1723535566492,-500.0,0.00014621,2]
[334759310,1723535566501,-500.0,0.00014621,2]
[334759311,1723535566511,-500.0,0.00014824,2]
[334759312,1723535566521,-732.87,0.00014895,2]
[334759313,1723535566531,-500.0,0.00014895,2]
[334759314,1723535566540,-500.0,0.00014895,2]
[334759315,1723535566549,-500.0,0.00015098,2]
[334759316,1723535566560,-732.87,0.00015169,2]
[334759317,1723535566574,-500.0,0.00015169,2]
[334759318,1723535566583,-500.0,0.00015169,2]
[334759319,1723535566593,-500.0,0.00015372,2]
[334759320,1723535566603,-221.01,0.00015432,2]
[334759321,1723535566614,-732.87,0.00015443,2]
[334759322,1723535566624,-500.0,0.00015443,2]
[334759323,1723535566634,-500.0,0.00015443,2]
[334759324,1723535566643,-500.0,0.00015646,2]
[334759325,1723535566654,-732.87,0.00015717,2]
[334759326,1723535566664,-500.0,0.00015717,2]
[334759327,1723535566674,-500.0,0.00015717,2]
[334759328,1723535566684,-500.0,0.0001592,2]
[334759329,1723535566694,-500.0,0.00015991,2]
[334759330,1723535566703,-732.87,0.00015991,2]
[334759331,1723535566713,-500.0,0.00015991,2]
[334759332,1723535566724,-500.0,0.00016194,2]
[334759333,1723535566734,-500.0,0.00016265,2]
[334759334,1723535566744,-732.87,0.00016265,2]
[334759335,1723535566753,-500.0,0.00016265,2]
[334759336,1723535566764,-500.0,0.00016468,2]
[334759337,1723535566774,-500.0,0.00016539,2]
[334759338,1723535566785,-732.87,0.00016539,2]
[334759339,1723535566795,-500.0,0.00016742,2]
[334759340,1723535566805,-500.0,0.00016813,2]
[334759341,1723535566815,-732.87,0.00016813,2]
[334759342,1723535566826,-500.0,0.00017016,2]
[334759343,1723535566836,-500.0,0.00017017,2]
[334759344,1723535566846,-355.28309859,0.00017087,2]
[334759345,1723535566856,-348.28711414,0.0001729,2]
[334759346,1723535566866,-348.05405034,0.00017291,2]
[334759347,1723535566876,-221.01,0.00017696,2]
[334759348,1723535566885,-500.0,0.0001866,2]
[334759349,1723535566895,-500.0,0.00018934,2]
[334759350,1723535566905,-500.0,0.00019208,2]
[334759351,1723535566915,-500.0,0.00019482,2]
[334759352,1723535566926,-426.41,0.00019726,2]
[334759353,1723535566937,-221.01,0.0001996,2]
[334759354,1723535566946,-2925.31144758,0.00020101,2]
[334759355,1723535566957,-221.01,0.00022224,2]
[334759356,1723535566967,-221.01,0.00024488,2]
[334759357,1723535566977,-25626.04837519,0.00025,2]
[334759359,1723535593811,550.0,0.0001,2]
[334759360,1723535595034,600.0,0.00012,2]
[334759361,1723535613509,1203.27,0.00013,2]
[334759365,1723535738851,1022.78,0.00013,2]
[334759366,1723535853746,155.73849284,0.000125,2]
[334759367,1723535864847,869.37,0.00013,2]
[334759368,1723535916904,215.71,0.00011085,2]
[334759369,1723535991061,738.96,0.00013,2]
[334759370,1723535993187,400.0,0.00012994,2]
[334759371,1723536012406,250.0,0.00012993,2]
[334759372,1723536115846,628.12,0.00013,2]
[334759373,1723536153077,372.14812752,0.00011,2]
[334759374,1723536156549,23900.0,0.0001294,2]
[334759375,1723536198048,342.78005502,0.00011,2]
[334759376,1723536241447,533.9,0.00013,2]
[334759377,1723536250217,300.0,0.00024392,120]
[334759378,1723536250543,300.0,0.00025745,120]
[334759379,1723536314115,329.18,0.00012986,2]
[334759380,1723536332140,150.0,0.00026372,120]
[334759382,1723536367396,453.81,0.00013,2]
[334759383,1723536373814,276.96,0.00011015,2]
[334759384,1723536470182,200.0,0.00012941,2]
[334759385,1723536482375,1202.68041491,0.00012682,2]
[334759386,1723536493956,385.74,0.00013,2]
[334759393,1723536619906,327.88,0.00013,2]
[334759401,1723536631971,-276.96,0.00013279,2]
[334759402,1723536631982,-439.11555003,0.00013303,2]
[334759403,1723536631993,-300.96757741,0.00013303,2]
[334759404,1723536632005,-138.14797262,0.00013303,2]
[334759405,1723536632014,-526.77808365,0.00013303,2]
[334759407,1723536632024,-336.62407188,0.00013303,2]
[334759408,1723536632035,-190.15401177,0.00013303,2]
[334759410,1723536632045,-155.0,0.00013303,2]
[334759412,1723536632054,-661.92186097,0.00013304,2]
[334759413,1723536632066,-1516.03968855,0.00013304,2]
[334759414,1723536632079,-25276.6233751,0.00013304,2]
[334759415,1723536632089,-155.0,0.0001331,2]
[334759416,1723536632098,-300.0,0.00013377,2]
[334759417,1723536632107,-155.0,0.00013398,2]
[334759418,1723536632116,-252.18223292,0.00013398,2]
[334759419,1723536632126,-522.80021426,0.00013483,2]
[334759420,1723536632135,-169.61,0.00013485,2]
[334759421,1723536632145,-23884.91909059,0.0001353,2]
[334759422,1723536632160,-450.0,0.0001353,2]
[334759423,1723536632170,-791.24822385,0.0001353,2]
[334759424,1723536632181,-2977.63233919,0.0001353,2]
[334759425,1723536632192,-2757.28875659,0.0001353,2]
[334759426,1723536632202,-715.77999834,0.0001353,2]
[334759432,1723536638015,-1143.28339698,0.0001353,2]
[334759433,1723536638027,-2662.65394177,0.0001353,2]
[334759434,1723536638038,-2270.48898449,0.0001353,2]
[334759435,1723536638071,-775.44461026,0.0001353,2]
[334759436,1723536638083,-49112.65287047,0.0001353,2]
[334759437,1723536638094,-3348.22636729,0.0001353,2]
[334759438,1723536638106,-5726.34454775,0.0001353,2]
[334759439,1723536638117,-251.63,0.0001353,2]
[334759440,1723536638128,-2879.43368562,0.0001353,2]
[334759441,1723536638140,-252.97318681,0.0001353,2]
[334759442,1723536638149,-1755.95327791,0.00013628,2]
[334759443,1723536638160,-519.980028,0.00013628,2]
[334759444,1723536638176,-479.23585153,0.00013628,2]
[334759445,1723536638187,-500.0,0.00013628,2]
[334759446,1723536638198,-424.88308538,0.00013628,2]
[334759447,1723536638210,-1856.5631075,0.00013628,2]
[334759448,1723536638221,-42891.94640945,0.00013628,2]
[334759449,1723536638230,-159.09,0.00013666,2]
[334759450,1723536638240,-159.09,0.0001367,2]
[334759451,1723536638249,-159.09,0.00013675,2]
[334759452,1723536638260,-159.09,0.00013679,2]
[334759453,1723536638269,-159.09,0.00013684,2]
[334759454,1723536638278,-159.09,0.00013688,2]
[334759455,1723536638287,-159.09,0.00013693,2]
[334759456,1723536638296,-159.09,0.00013697,2]
[334759457,1723536638305,-5000.0,0.00013698,2]
[334759458,1723536638314,-5000.0,0.00013698,2]
[334759459,1723536638323,-200.0,0.00013699,2]
[334759460,1723536638334,-2751.0,0.00013699,2]
[334759461,1723536638343,-179.73,0.00013699,2]
[334759462,1723536638352,-159.09,0.00013702,2]
[334759463,1723536638361,-159.09,0.00013706,2]
[334759464,1723536638370,-159.09,0.00013711,2]
[334759465,1723536638380,-159.09,0.00013716,2]
[334759466,1723536638389,-159.09,0.0001372,2]
[334759467,1723536638398,-159.09,0.00013725,2]
[334759468,1723536638408,-788.22,0.00013727,2]
[334759469,1723536638418,-636.44633332,0.00013727,2]
[334759470,1723536638427,-500.0,0.00013727,2]
[334759471,1723536638436,-500.0,0.00013727,2]
[334759472,1723536638445,-500.0,0.00013727,2]
[334759473,1723536638455,-500.0,0.00013727,2]
[334759474,1723536638464,-500.0,0.00013727,2]
[334759475,1723536638473,-500.0,0.00013727,2]
[334759476,1723536638482,-500.0,0.00013727,2]
[334759477,1723536638491,-500.0,0.00013728,2]
[334759478,1723536638500,-518.42722484,0.00013728,2]
[334759479,1723536638510,-500.0,0.00013728,2]
[334759480,1723536638519,-500.0,0.00013728,2]
[334759481,1723536638528,-513.14556165,0.00013728,2]
[334759482,1723536638538,-500.0,0.00013728,2]
[334759483,1723536638547,-450.3480384,0.00013728,2]
[334759484,1723536638560,-49.6519616,0.00013728,2]
[334759485,1723536638569,-500.0,0.00013728,2]
[334759486,1723536638580,-500.0,0.00013728,2]
[334759487,1723536638590,-500.0,0.00013728,2]
[334759488,1723536638600,-449.40208661,0.00013728,2]
[334759489,1723536638611,-50.59791339,0.00013728,2]
[334759490,1723536638621,-500.0,0.00013728,2]
[334759491,1723536638630,-500.0,0.00013728,2]
[334759492,1723536638639,-243.59269059,0.00013728,2]
[334759493,1723536638651,-256.40730941,0.00013728,2]
[334759494,1723536638660,-472.76786462,0.00013728,2]
[334759495,1723536638672,-27.23213538,0.00013728,2]
[334759496,1723536638681,-159.09,0.00013729,2]
[334759497,1723536638691,-159.09,0.00013734,2]
[334759498,1723536638700,-130.40919807,0.00013799,2]
[334759499,1723536638712,-369.59080193,0.00013799,2]
[334759500,1723536638722,-500.0,0.00013799,2]
[334759501,1723536638733,-300.0,0.00013799,2]
[334759502,1723536638742,-500.0,0.00013799,2]
[334759503,1723536638752,-265.88721194,0.00013859,2]
[334759504,1723536638762,-1296.87414278,0.00013896,2]
[334759505,1723536638771,-370.6658017,0.00013899,2]
[334759506,1723536638782,-2500.0,0.00013902,2]
[334759507,1723536638792,-472.23,0.00013973,2]
[334759508,1723536638802,-154.96,0.00013973,2]
[334759509,1723536638813,-1042.00659292,0.00013999,2]
[334759510,1723536638823,-224.183632,0.00014,2]
[334759511,1723536638836,-650.0,0.00014,2]
[334759512,1723536638846,-1646.38,0.00014,2]
[334759513,1723536638856,-500.0,0.00014,2]
[334759514,1723536638865,-500.0,0.00014,2]
[334759515,1723536638874,-2639.81,0.00014,2]
[334759516,1723536638884,-69629.28465365,0.00014,2]
[334759517,1723536638896,-1656.96940033,0.00014,2]
[334759518,1723536638912,-496.804842,0.00014,2]
[334759519,1723536638924,-1641.96215942,0.00014,2]
[334759520,1723536638946,-1153.0,0.00014,2]
[334759521,1723536638958,-6674.47107964,0.00014,2]
[334759522,1723536638969,-1391.18950319,0.00014,2]
[334759523,1723536638981,-586.27968751,0.00014,2]
[334759524,1723536638993,-300.32,0.00014,2]
[334759532,1723536639997,-568.0,0.00013529,2]
[334759533,1723536640007,-16469.71867426,0.00014,2]
[334759534,1723536640017,-500.0,0.00014,2]
[334759535,1723536640025,-788.22,0.00014001,2]
[334759536,1723536640035,-511.31066904,0.00014001,2]
[334759537,1723536640044,-500.0,0.00014001,2]
[334759538,1723536640053,-500.0,0.00014001,2]
[334759539,1723536640062,-500.0,0.00014001,2]
[334759540,1723536640072,-500.0,0.00014001,2]
[334759541,1723536640088,-500.0,0.00014001,2]
[334759542,1723536640097,-386.72392555,0.00014001,2]
[334759543,1723536640300,-500.0,0.00014001,2]
[334759544,1723536640321,-500.0,0.00014001,2]
[334759545,1723536640332,-500.0,0.00014001,2]
[334759546,1723536640342,-252.80618025,0.00014001,2]
[334759547,1723536640351,-500.0,0.00014001,2]
[334759548,1723536640360,-521.67064209,0.00014001,2]
[334759549,1723536640369,-500.0,0.00014001,2]
[334759550,1723536640378,-506.54680279,0.00014001,2]
[334759551,1723536640388,-513.06578889,0.00014001,2]
[334759553,1723536640397,-500.0,0.00014001,2]
[334759554,1723536640407,-500.0,0.00014001,2]
[334759555,1723536640417,-500.0,0.00014001,2]
[334759556,1723536640425,-500.0,0.00014001,2]
[334759557,1723536640435,-500.0,0.00014001,2]
[334759558,1723536640444,-962.07,0.00014001,2]
[334759559,1723536640453,-500.0,0.00014001,2]
[334759560,1723536640463,-500.0,0.00014001,2]
[334759561,1723536640473,-500.0,0.00014001,2]
[334759562,1723536640482,-500.0,0.00014001,2]
[334759563,1723536640491,-500.0,0.00014001,2]
[334759564,1723536640501,-524.01,0.00014001,2]
[334759565,1723536640510,-500.0,0.00014001,2]
[334759566,1723536640520,-500.0,0.00014001,2]
[334759567,1723536640530,-500.0,0.00014001,2]
[334759568,1723536640539,-500.0,0.00014001,2]
[334759569,1723536640549,-500.0,0.00014001,2]
[334759570,1723536640558,-453.67703964,0.00014001,2]
[334759571,1723536640568,-430.22634465,0.00014001,2]
[334759572,1723536640579,-500.0,0.00014001,2]
[334759573,1723536640591,-500.0,0.00014001,2]
[334759574,1723536640601,-511.15607197,0.00014001,2]
[334759575,1723536640610,-500.0,0.00014001,2]
[334759576,1723536640619,-500.0,0.00014001,2]
[334759577,1723536640628,-500.0,0.00014001,2]
[334759578,1723536640637,-514.63220393,0.00014001,2]
[334759579,1723536640647,-509.83601833,0.00014001,2]
[334759580,1723536640656,-500.0,0.00014001,2]
[334759581,1723536640665,-500.0,0.00014001,2]
[334759582,1723536640675,-500.0,0.00014001,2]
[334759583,1723536640684,-500.0,0.00014001,2]
[334759584,1723536640693,-500.0,0.00014001,2]
[334759585,1723536640702,-500.0,0.00014001,2]
[334759586,1723536640712,-606.51378727,0.00014001,2]
[334759587,1723536640722,-500.0,0.00014002,2]
[334759588,1723536640731,-520.97198268,0.00014002,2]
[334759589,1723536640740,-500.0,0.00014002,2]
[334759590,1723536640749,-500.0,0.00014002,2]
[334759591,1723536640759,-500.0,0.00014002,2]
[334759592,1723536640768,-500.0,0.00014002,2]
[334759593,1723536640777,-500.0,0.00014002,2]
[334759594,1723536640786,-516.87009406,0.00014002,2]
[334759595,1723536640796,-500.0,0.00014002,2]
[334759596,1723536640805,-500.0,0.00014002,2]
[334759597,1723536640814,-500.0,0.00014002,2]
[334759598,1723536640824,-516.68186868,0.00014002,2]
[334759599,1723536640835,-500.0,0.00014002,2]
[334759600,1723536640844,-507.57909395,0.00014073,2]
[334759601,1723536640854,-500.0,0.00014073,2]
[334759602,1723536640863,-300.0,0.00014073,2]
[334759603,1723536640873,-500.0,0.00014073,2]
[334759604,1723536640883,-500.0,0.00014245,2]
[334759605,1723536640892,-500.0,0.00014245,2]
[334759606,1723536640902,-857.5,0.00014245,2]
[334759607,1723536640917,-500.0,0.00014245,2]
[334759608,1723536640927,-500.0,0.00014245,2]
[334759609,1723536640936,-212.47711235,0.00014246,2]
[334759610,1723536640946,-500.0,0.00014246,2]
[334759611,1723536640957,-527.92,0.00014246,2]
[334759612,1723536640966,-500.0,0.00014246,2]
[334759613,1723536640976,-500.0,0.00014246,2]
[334759614,1723536640986,-500.0,0.00014246,2]
[334759615,1723536640995,-351.94492534,0.00014246,2]
[334759616,1723536641004,-500.0,0.00014246,2]
[334759617,1723536641014,-500.0,0.00014246,2]
[334759618,1723536641024,-500.0,0.00014246,2]
[334759619,1723536641033,-503.94444511,0.00014246,2]
[334759620,1723536641042,-500.0,0.00014246,2]
[334759621,1723536641052,-500.0,0.00014246,2]
[334759622,1723536641062,-504.03191484,0.00014246,2]
[334759623,1723536641071,-388.34692991,0.00014246,2]
[334759624,1723536641082,-500.0,0.00014246,2]
[334759625,1723536641092,-916.56,0.00014246,2]
[334759626,1723536641101,-500.0,0.00014246,2]
[334759627,1723536641110,-987.74,0.00014246,2]
[334759628,1723536641119,-500.0,0.00014246,2]
[334759629,1723536641129,-500.0,0.00014246,2]
[334759630,1723536641139,-500.0,0.00014246,2]
[334759631,1723536641148,-500.0,0.00014246,2]
[334759632,1723536641158,-500.0,0.00014246,2]
[334759633,1723536641167,-7784.29,0.00014246,2]
[334759634,1723536641176,-500.0,0.00014246,2]
[334759635,1723536641185,-1837.44,0.00014246,2]
[334759636,1723536641195,-505.32102892,0.00014246,2]
[334759637,1723536641204,-500.0,0.00014246,2]
[334759638,1723536641213,-243.12714442,0.00014261,2]
[334759639,1723536641223,-1646.38,0.00014274,2]
[334759640,1723536641232,-294.08117414,0.00014274,2]
[334759641,1723536641241,-500.0,0.00014274,2]
[334759642,1723536641251,-2639.81,0.00014274,2]
[334759643,1723536641260,-86564.02358438,0.00014274,2]
[334759644,1723536641269,-500.0,0.00014274,2]
[334759645,1723536641279,-788.22,0.00014275,2]
[334759646,1723536641288,-500.0,0.00014275,2]
[334759647,1723536641298,-500.0,0.00014275,2]
[334759648,1723536641307,-500.0,0.00014275,2]
[334759649,1723536641316,-500.0,0.00014275,2]
[334759650,1723536641325,-500.0,0.00014275,2]
[334759651,1723536641335,-500.0,0.00014275,2]